Cogmind - Beta 10.2 *** ADVENTURER MODE // 2021.09.11 @ 15:17:44 Player: Jezoensis Result: Establishing 0b11! Performance ------------- Evolutions (9) 4500 Regions Visited (30) 6000 Robots Destroyed (401) 2005 Value Destroyed (18934) 18934 Prototype IDs (83) 1660 Alien Tech Used (2) 400 Bonus (30279) 30279 TOTAL SCORE: 63778 Bonus ------- High Alert Combat Kills 1287 Follower Combat Kills 2529 Entered Garrisons 200 Used RIF Installer 500 Network Hubs Disabled 400 Aligned with FarCom 300 Met Data Miner 300 Met Zhirov 300 Built Enhanced Grunts 300 Met R17 at Cetus 500 Met R17 at Research 2000 Destroyed MAIN.C Guards 500 Met MAIN.C 5000 Destroyed MAIN.C Shell 5000 Destroyed MAIN.C 10000 Win 3000 Friendly Fire -1837 Cogmind --------- Core Integrity 1162/1600 Matter 611/800 Energy 2469/2490 System Corruption 32% Temperature Cool (16) Movement Treading (166) Location 0b11 Command Parts ------- > --- POWER (2) -------- Quantum Reactor Zero-point Reactor > --- PROPULSION (6) --- Armored Heavy Treads Armored Heavy Treads Advanced Heavy Siege Treads > --- UTILITY (14) ----- High-capacity Storage Unit High-capacity Storage Unit Superbattery Experimental Matter Compressor Experimental Optical Array Long-range Terrain Scanner Experimental Terrain Scan Processor Advanced Target Analyzer Advanced Core Analyzer Advanced Armor Integrity Analyzer Advanced Weapon Cycler Experimental Transmission Jammer Experimental Powered Armor System Purifier > --- WEAPON (4) ------- Enhanced Nova Cannon Railgun Railgun Railgun > --- INVENTORY (20) --- Zero-point Reactor Biometal Heavy Treads Advanced Heat Sink Advanced Heat Sink Experimental Coolant Injector Experimental Matter Compressor (500) Advanced Terrain Scanner Advanced Kinecellerator Advanced Thermal Shield Thermal Barrier EM Shield Long-range Tractor Beam Improved Field Recycling Unit (166) Railgun Improved KE Penetrator Hellfire Missile Launcher Peak State ------------ > --- POWER ------------ Quantum Reactor Quantum Reactor > --- PROPULSION ------- Centrium Heavy Treads Biometal Heavy Treads Advanced Heavy Siege Treads > --- UTILITY ---------- Advanced Heat Sink High-capacity Storage Unit High-capacity Storage Unit High-capacity Storage Unit High-capacity Storage Unit Superbattery Experimental Optical Array Experimental Terrain Scan Processor Advanced Core Analyzer Advanced Armor Integrity Analyzer Advanced Weapon Cycler Centrium Medium Armor Plating Experimental Focal Shield Improved Force Field > --- WEAPON ----------- Improved KE Penetrator Improved KE Penetrator Improved KE Penetrator Helical Railgun > --- INVENTORY -------- Quantum Reactor Armored Heavy Treads Armored Heavy Treads Armored Heavy Treads Biometal Heavy Treads Advanced Heavy Siege Treads Experimental Matter Compressor Experimental Matter Compressor Experimental Matter Compressor Advanced Terrain Scanner Long-range Terrain Scanner Advanced Kinecellerator Experimental Transmission Jammer Improved Utility Shielding Centrium Heavy Armor Plating Advanced Thermal Shield EM Shield Advanced Shield Generator Advanced Shield Generator System Purifier Long-range Tractor Beam Improved Field Recycling Unit Enhanced Nova Cannon Railgun Railgun Railgun Railgun Railgun Railgun Hellfire Missile Launcher [Rating: 211] Favorites ----------- Power Quantum Reactor Engine Improved Deuterium Engine Power Core Fission Core Reactor Quantum Reactor Propulsion Light Treads Treads Light Treads Utility High-capacity Storage Unit Device Experimental Transmission Jammer Storage High-capacity Storage Unit Processor Experimental Terrain Scan Processor Hackware Advanced Hacking Suite Protection Centrium Medium Armor Plating Weapon Railgun Energy Gun Precision Beam Rifle Energy Cannon Advanced Plasma Cannon Ballistic Gun Railgun Launcher Mini Grenade Launcher Special Weapon Mining Laser Slashing Weapon Axe Build | -11 -10 -10 -9 -9 -9 -8 -8 -8 -7 -7 -7 -7 -6 -6 -6 -6 -6 -6 -5 -5 -5 -4 -4 -4 -4 -3 -3 -2 -1 -1 ------- Run | Scr Mat Min Mat Min Exi Min Mat Gar Fac Low Low Dat Pro Fac Ext Cet Arc Hub Fac Upp Upp Fac Upp Upp Zhi Pro Res Res Acc Com Slots Evolved 18 | . . . 2 . . . 2 . 2 . . . . 2 . . . . 2 . . 2 . . . . 2 2 2 . Power 1 | . . . . . . . . . . . . . . . . . . . . . . . . . . . . 1 . . Propulsion 3 | . . . 1 . . . . . 1 . . . . . . . . . . . . . . . . . 1 . . . Utility 12 | . . . 1 . . . 1 . 1 . . . . 2 . . . . 2 . . 1 . . . . 1 1 2 . Weapon 2 | . . . . . . . 1 . . . . . . . . . . . . . . 1 . . . . . . . . Parts Attached 775 | 8 10 . 16 6 1 8 17 15 33 4 15 1 5 125 15 19 4 8 34 8 14 73 5 9 5 6 53 109 47 102 Power 28 | 1 1 . 1 . . . 2 1 1 . . . . 6 . 1 . . . . . 1 1 1 1 . . 4 2 4 Engine 7 | 1 1 . 1 . . . 2 . 1 . . . . 1 . . . . . . . . . . . . . . . . Core 8 | . . . . . . . . 1 . . . . . 5 . . . . . . . . 1 1 . . . . . . Reactor 13 | . . . . . . . . . . . . . . . . 1 . . . . . 1 . . 1 . . 4 2 4 Propulsion 56 | 2 3 . 1 . . . 2 2 5 . 1 1 . 9 . 1 3 . 3 1 . 5 . . . . 9 4 . 4 Treads 56 | 2 3 . 1 . . . 2 2 5 . 1 1 . 9 . 1 3 . 3 1 . 5 . . . . 9 4 . 4 Leg . | . . . . . . . . . . . . . . . . . . . . . . . . . . . . . . . Wheel . | . . . . . . . . . . . . . . . . . . . . . . . . . . . . . . . Hover . | . . . . . . . . . . . . . . . . . . . . . . . . . . . . . . . Flight . | . . . . . . . . . . . . . . . . . . . . . . . . . . . . . . . Utility 475 | 3 4 . 8 2 1 4 5 5 17 2 12 . 4 62 14 7 1 5 22 6 14 39 4 7 4 6 35 72 38 72 Device 339 | 2 2 . 1 1 . 2 . 2 9 1 8 . 2 36 8 4 1 5 16 4 11 30 3 6 3 5 25 64 34 54 Storage 39 | 1 2 . 4 . 1 . 1 . 2 . . . . 4 . 1 . . 2 . . 2 1 1 . . 3 3 1 10 Processor 14 | . . . 1 . . . 1 2 . . . . . 1 . 1 . . 1 . 1 . . . . . 2 . 2 2 Hackware 10 | . . . 2 . . . 1 . 2 . . . . . . . . . 1 . . 3 . . . . . 1 . . Protection 73 | . . . . 1 . 2 2 1 4 1 4 . 2 21 6 1 . . 2 2 2 4 . . 1 1 5 4 1 6 Artifact . | . . . . . . . . . . . . . . . . . . . . . . . . . . . . . . . Weapon 216 | 2 2 . 6 4 . 4 8 7 10 2 2 . 1 48 1 10 . 3 9 1 . 28 . 1 . . 9 29 7 22 Energy Gun 19 | 1 . . . . . . 4 4 2 . . . . 3 . 5 . . . . . . . . . . . . . . Energy Cannon 37 | . . . . . . . . . 2 . . . . 3 . 1 . . 2 . . 8 . . . . 3 11 3 4 Ballistic Gun 119 | 1 1 . 2 3 . 2 2 . 3 1 1 . . 24 1 4 . 3 7 1 . 20 . 1 . . 5 17 4 16 Ballistic Cannon . | . . . . . . . . . . . . . . . . . . . . . . . . . . . . . . . Launcher 13 | . 1 . 2 1 . 2 . 3 . . . . . . . . . . . . . . . . . . 1 1 . 2 Special Weapon 2 | . . . 2 . . . . . . . . . . . . . . . . . . . . . . . . . . . Impact Weapon . | . . . . . . . . . . . . . . . . . . . . . . . . . . . . . . . Slashing Weapon 26 | . . . . . . . 2 . 3 1 1 . 1 18 . . . . . . . . . . . . . . . . Piercing Weapon . | . . . . . . . . . . . . . . . . . . . . . . . . . . . . . . . Special Melee Weapon . | . . . . . . . . . . . . . . . . . . . . . . . . . . . . . . . Unidentified Prototypes 32 | . . . . . . . 1 . 1 . 2 . . 5 . 3 . 1 2 . . . . . 3 . 6 1 . 7 Parts Lost 24 | . 1 . . . . . 2 3 . . . . . 1 . . 1 . . . . 1 . 1 . . . . . 14 Power 5 | . . . . . . . . 1 . . . . . . . . . . . . . 1 . 1 . . . . . 2 Propulsion 6 | . . . . . . . . 2 . . . . . 1 . . 1 . . . . . . . . . . . . 2 Utility 6 | . . . . . . . 1 . . . . . . . . . . . . . . . . . . . . . . 5 Weapon 7 | . 1 . . . . . 1 . . . . . . . . . . . . . . . . . . . . . . 5 Highest Loss Streak 11 | . 1 . . . . . 1 2 . . . . . 1 . . 1 . . . . 1 . 1 . . . . . 11 Average Slot Usage (%) 94 | . 100 100 99 100 100 100 99 97 99 100 99 100 100 99 99 94 91 93 93 88 88 90 88 89 89 90 93 87 88 86 Engine 2 | . 14 14 11 11 11 11 9 4 3 7 7 7 7 2 . . . . . . . . . . . . . . . . Core 1 | . . . . . . . . 2 3 . . . . 3 6 1 . . . . . . 3 4 2 . . . . . Reactor 2 | . . . . . . . . . . . . . . . . 4 6 6 5 5 5 5 . . 2 5 4 7 7 6 Treads 23 | . 28 28 33 33 33 33 27 26 30 30 31 35 35 30 31 26 23 25 22 17 16 15 15 15 15 15 20 12 11 10 Device 14 | . 14 14 5 10 11 9 1 5 13 14 13 14 13 17 14 11 12 12 14 10 10 11 13 14 14 14 14 16 19 16 Storage 16 | . 14 14 14 22 22 22 18 18 15 15 14 14 14 12 12 16 18 18 16 22 22 20 20 20 20 20 18 16 15 15 Processor 9 | . . . 1 . . . 9 9 7 7 7 7 7 6 6 10 12 12 16 16 16 15 15 15 15 15 13 12 15 15 Protection 2 | . . . . . . 1 3 3 1 . 1 . . 6 9 2 . . . . . . . . . . 2 3 3 3 Ballistic Gun 16 | . 18 28 20 19 22 20 14 18 17 19 21 21 19 14 18 4 12 13 13 15 16 17 15 18 20 20 15 15 14 14 Naked Turns . | . . . . . . . . . . . . . . . . . . . . . . . . . . . . . . . Heaviest Build 231 | 12 40 25 43 46 60 63 53 53 92 92 92 87 87 103 101 133 132 138 169 170 170 182 173 164 172 173 193 223 226 231 Greatest Support 235 | 40 40 40 60 60 60 60 60 60 88 88 108 100 100 132 132 156 156 149 162 188 188 188 187 187 187 187 195 235 235 235 Greatest Overweight (x) 1 | . . . . . . 1 1 . 1 1 1 . . . . . 1 . 1 1 . 1 . . . . 1 1 . 1 Average Overweight (x) . | . . . . . . . . . . . . . . . . . . . . . . . . . . . . . . . Largest Inventory Capacity 36 | 6 12 10 18 16 18 18 18 16 20 20 20 20 20 20 20 28 28 28 36 36 36 36 36 36 36 36 36 36 36 36 Average Capacity 26 | 5 10 10 13 16 17 18 16 16 18 20 20 20 20 20 20 26 28 28 29 36 36 36 36 36 36 36 36 36 36 33 Most Carried 36 | 4 10 10 16 16 18 18 17 16 20 20 20 19 19 20 20 28 28 28 35 36 36 36 36 36 36 35 36 36 36 36 Average Carried 26 | 2 7 10 12 15 16 17 15 15 17 19 19 19 19 19 19 26 28 28 28 35 35 34 36 36 35 35 35 35 35 31 Final Capacity 36 | 6 10 10 16 16 18 18 16 16 20 20 20 20 20 20 20 28 28 28 36 36 36 36 36 36 36 36 36 36 36 20 Final Carried 36 | 3 10 10 16 16 18 18 16 16 20 20 19 19 19 20 20 28 28 28 35 36 35 36 36 36 35 35 36 36 36 17 Class Distribution -------------------- 35% | Hauler-Skirmisher 17% | Scavenger-Skirmisher 8% | Hauler-Mutant 8% | Mutant 6% | Hauler-Assassin 4% | Scavenger-Assassin 4% | Hauler-Tank 3% | Hauler-Gunner Dominant Class ---------------- Mutant | -10/Materials Mutant | -10/Mines Mutant | -9/Materials Mutant | -9/Mines Mutant | -9/Exiles Skirmisher | -8/Mines Skirmisher | -8/Materials Scavenger-Skirmisher | -8/Garrison Scavenger-Skirmisher | -7/Factory Scavenger-Skirmisher | -7/Lower Caves Scavenger-Skirmisher | -7/Lower Caves Scavenger-Skirmisher | -7/Data Miner Scavenger-Skirmisher | -6/Proximity Caves Hauler-Assassin | -6/Factory Commander-Tank | -6/Extension Hauler-Gunner | -6/Cetus Commander-Gunner | -6/Archives Commander-Skirmisher | -6/Hub_04(d) Scavenger-Skirmisher | -5/Factory Hauler-Skirmisher | -5/Upper Caves Hauler-Skirmisher | -5/Upper Caves Hauler-Mutant | -4/Factory Hauler-Skirmisher | -4/Upper Caves Hauler-Skirmisher | -4/Upper Caves Hauler-Skirmisher | -4/Zhirov Hauler-Skirmisher | -3/Proximity Caves Hauler-Skirmisher | -3/Research Hauler-Skirmisher | -2/Research Hauler-Skirmisher | -1/Access Scavenger-Skirmisher | -1/Command Resources | -11 -10 -10 -9 -9 -9 -8 -8 -8 -7 -7 -7 -7 -6 -6 -6 -6 -6 -6 -5 -5 -5 -4 -4 -4 -4 -3 -3 -2 -1 -1 ----------- Run | Scr Mat Min Mat Min Exi Min Mat Gar Fac Low Low Dat Pro Fac Ext Cet Arc Hub Fac Upp Upp Fac Upp Upp Zhi Pro Res Res Acc Com Matter Collected 19266 | 295 124 99 57 327 20 146 366 207 750 80 330 . 200 2314 960 220 115 68 788 624 380 1431 253 398 60 271 1409 2675 1579 2720 Remotely 7426 | 10 . . . . . . . . . . . . . 143 . . . . 330 . 216 510 . 196 . 168 643 1808 1055 2347 Salvage Created 21795 | 118 279 124 189 160 . 205 559 398 908 101 490 . 158 2773 1099 741 161 441 692 477 505 2078 243 319 . 289 860 3237 1647 2544 Parts 1065 | 10 15 4 15 4 . 13 25 24 40 7 23 . 9 119 58 20 6 23 35 17 32 99 9 12 . 15 28 167 109 127 Haulers Intercepted 18 | . 1 . . . . . 2 . 2 . 1 . . 5 1 . . . 1 . . 1 . . . . 3 1 . . Recyclers Shooed 16 | . . . . . . . . . 2 . . . . 7 1 . . . 2 . . . . . . . . 3 1 . Parts Field Recycled 62 | . . . . . . . . . . . . . . . . . . . . . . . . . . . 38 . . 24 Retrieved Matter 1016 | . . . . . . . . . . . . . . . . . . . . . . . . . . . 832 . . 184 Parts Self-Destructed 145 | . . . . . . . . . . 7 37 . 19 . . . . . . 18 32 . 7 10 . 15 . . . . Prevented 3 | . . . . . . . . . . . . . . . . . . . . 2 . . . 1 . . . . . . Kills | -11 -10 -10 -9 -9 -9 -8 -8 -8 -7 -7 -7 -7 -6 -6 -6 -6 -6 -6 -5 -5 -5 -4 -4 -4 -4 -3 -3 -2 -1 -1 ------- Run | Scr Mat Min Mat Min Exi Min Mat Gar Fac Low Low Dat Pro Fac Ext Cet Arc Hub Fac Upp Upp Fac Upp Upp Zhi Pro Res Res Acc Com Combat Hostiles Destroyed 293 | . 6 3 6 2 . 3 9 17 6 2 8 . 5 31 17 8 2 2 5 10 11 26 4 5 . 6 8 40 19 32 Guns 255 | . 5 3 1 2 . 2 7 10 5 2 8 . 5 31 17 3 2 2 5 10 11 25 3 5 . 6 8 36 18 23 Cannons 4 | . . . . . . . . . 1 . . . . . . 1 . . . . . 1 1 . . . . . . . AOE 31 | . 1 . 5 . . 1 2 7 . . . . . . . 1 . . . . . . . . . . . 4 1 9 Classes Destroyed 21 | 2 2 . 2 2 . 3 . 1 2 . . . . 1 1 . . 1 1 . . . 1 . . . 1 . . 1 Worker 21 | . . . . . . 1 . . 3 . . . . 6 . . . . . . . 4 . . . . . 4 3 . Builder 21 | . . . 1 1 . . 1 . . . . . . 4 1 . . 1 3 . . 3 . . . . . 3 3 . Tunneler 7 | 3 . . . . . 1 . . . . . . . . . . . . . . . 2 . . . . . . 1 . Hauler 18 | . 1 . . . . . 2 . 2 . 1 . . 5 1 . . . 1 . . 1 . . . . 3 1 . . Recycler 19 | 1 . . . . . 1 . . 5 . . . . 4 1 . . 1 2 . . 1 . . . . . 1 . 2 Operator 3 | . . . . . . . . . . . . . . . . . . . 1 . . . . . . . . 1 1 . Watcher 19 | . . . . . . . . . 3 . . . . 4 2 2 . . 2 . . 1 . . . . . 2 2 1 Swarmer 59 | . . . . . . . . 10 . . 1 . 4 2 7 . . . 3 4 6 8 4 . . 4 . 6 . . Grunt 85 | . 6 3 5 . . 1 6 5 1 2 6 . 1 13 5 1 . . . 3 . 5 . 3 . 1 . 10 4 4 Brawler 5 | . . . . . . . . . . . . . . 1 . 1 . . . 1 . . . . . . . . . 2 Duelist 5 | . . . . . . 1 . . . . . . . . 1 . . . . . . . . . . . . 1 1 1 Protector 1 | . . . . . . . . . . . . . . . . . . 1 . . . . . . . . . . . . Sentry 35 | . . . 1 . . . 2 2 3 . 1 . . 2 2 . 2 1 1 . 1 6 . . . 1 1 6 2 1 Demolisher 5 | . . . . 1 . . . . . . . . . 2 . . . . . . . . . . . . 1 . . 1 Specialist 1 | . . . . . . . . . . . . . . . . . . . . . . . . . . . . . . 1 Hunter 18 | . . . . . . 1 1 . . . . . . 1 . 2 . . . . 2 2 . . . . 4 2 . 3 Programmer 57 | . . . . . . . . . 2 . . . . 6 . . . . 1 . 1 5 . 2 . . . 14 12 14 Behemoth 4 | . . . . . . . . . . . . . . . 2 . . . . . 1 . . . . . . 1 . . Cetus Guard 4 | . . . . . . . . . . . . . . . . 4 . . . . . . . . . . . . . . M Guard 2 | . . . . . . . . . . . . . . . . . . . . . . . . . . . . . . 2 Enhanced Grunt 1 | . . . . . . . . . . . . . . . . . . 1 . . . . . . . . . . . . Combat Programmer 2 | . . . . . . . . . . . . . . . . . . . . . . . . . . . . . . 2 Striker 2 | . . . . . . . . . . . . . . . . . . . . . . . . . . . 2 . . . Samaritan 1 | . . . . . . . . . . . . . . . . . . . . . . . 1 . . . . . . . Assembled 5 | . . . . 1 . . . . . . . . . 4 . . . . . . . . . . . . . . . . Thug 4 | . . . . . . . . . . . . . . . . 1 . 1 . 1 . 1 . . . . . . . . Savage 1 | . . . . . . . . . . . . . . . . . . . . 1 . . . . . . . . . . Guerrilla 1 | . . . . . . . . . . . . . . . . 1 . . . . . . . . . . . . . . Best Kill Streak 14 | 2 2 2 3 1 . 4 3 14 4 2 4 . 4 6 6 4 1 2 7 4 4 10 7 4 . 4 4 10 5 10 Combat Bots Only 14 | . 2 2 3 1 . 2 3 14 1 2 4 . 4 5 5 4 1 1 2 4 4 6 5 4 . 4 4 8 5 10 Max Kills in Single Turn 4 | 1 1 1 2 1 . 1 2 3 1 1 2 . 1 2 2 2 1 2 1 2 1 3 2 1 . 2 1 4 2 3 Gunslinging 2 | . . . . . . . . . . . 1 . . . 1 . . . . 1 . 2 1 . . 1 . 1 . . Exploded 4 | . 1 . 2 . . 1 2 2 . . . . . . . 1 . . . . . . . . . . . 4 1 3 Melee . | . . . . . . . . . . . . . . . . . . . . . . . . . . . . . . . Uniques/NPCs Destroyed 1 | . . . . . . . . . . . . . . . . . . . . . . . . . . . . . . 1 MAIN.C (-1/Command) Combat | -11 -10 -10 -9 -9 -9 -8 -8 -8 -7 -7 -7 -7 -6 -6 -6 -6 -6 -6 -5 -5 -5 -4 -4 -4 -4 -3 -3 -2 -1 -1 -------- Run | Scr Mat Min Mat Min Exi Min Mat Gar Fac Low Low Dat Pro Fac Ext Cet Arc Hub Fac Upp Upp Fac Upp Upp Zhi Pro Res Res Acc Com Damage Taken 20840 | . 223 262 62 47 . 55 495 503 129 91 250 . 160 1482 645 96 134 187 401 133 335 1823 50 155 . 232 609 1633 354 10294 Core 1483 | . 42 63 11 . . . 80 64 . . . . 36 76 68 16 . 36 14 16 54 273 . 11 . 16 98 71 42 396 Absorbed by Shields 4257 | . . . . . . . . . . . . . . . 46 74 . . . . . . . . . . 93 1221 378 2445 Reduced by Siege Mode 1622 | . . . . . . . . . . . . . . . . . . . . . 8 159 . 3 . . 14 98 35 1305 Core Remaining (%) 83 | 100 . 58 . . . 97 . 73 . . . . 94 . . . . 76 . . 91 . . . . 73 92 95 . 72 Volleys Fired 983 | 5 26 21 14 9 . 19 25 16 36 4 18 . 14 123 59 22 11 16 40 22 20 88 6 12 . 13 36 126 44 138 Largest 4 | 2 2 2 2 2 . 2 3 3 3 3 3 . 3 3 3 3 3 3 3 3 3 4 4 4 . 4 4 4 4 4 Hottest 203 | 70 70 40 100 43 . 53 134 117 136 78 78 . 78 83 83 170 113 113 156 94 94 199 199 199 . 136 138 203 190 168 Shots Fired 2937 | 10 52 42 22 17 . 36 70 44 103 12 54 . 42 357 162 58 29 47 98 53 60 246 19 48 . 52 120 421 167 496 Gun 2792 | 10 51 42 14 16 . 29 70 39 99 12 54 . 42 357 162 53 29 47 86 53 60 214 18 44 . 52 112 387 163 477 Cannon 112 | . . . . . . . . . 4 . . . . . . 5 . . 12 . . 32 1 4 . . 8 32 4 10 Launcher 29 | . 1 . 4 1 . 7 . 5 . . . . . . . . . . . . . . . . . . . 2 . 9 Special 4 | . . . 4 . . . . . . . . . . . . . . . . . . . . . . . . . . . Kinetic 2664 | 5 34 42 14 16 . 29 37 32 89 12 54 . 42 356 162 10 20 44 86 53 60 214 18 44 . 52 112 387 163 477 Thermal 164 | 5 17 . 4 . . . 17 7 10 . . . . 1 . . . . 12 . . 32 1 4 . . 8 32 4 10 Explosive 29 | . 1 . 4 1 . 7 . 5 . . . . . . . . . . . . . . . . . . . 2 . 9 Electromagnetic 80 | . . . . . . . 16 . 4 . . . . . . 48 9 3 . . . . . . . . . . . . Robot Hit Streak 71 | 4 11 27 8 18 . 40 22 12 24 35 52 . 11 46 43 26 33 41 10 36 42 30 19 32 . 16 23 42 36 71 Robot Miss Streak 6 | 1 1 1 2 . . 1 1 1 2 . 1 . 1 5 6 1 . 2 2 1 2 2 1 2 . 1 1 3 1 2 Penetration Max 2 | . . . . . . . . 1 1 . . . . . 1 . . . 1 1 . 1 . 1 . 1 . 1 2 1 Secondary Targets 58 | . . . . . . . 2 2 1 1 2 . 3 6 2 . . . 2 3 1 7 1 . . 2 4 7 3 9 Max Gunslinging Chain 2 | . . . . . . . 1 1 1 1 1 . 1 1 1 . . . 1 1 1 2 1 . . 1 1 2 1 1 Shots Hit Robots 2253 | 6 43 40 13 14 . 28 60 27 81 11 44 . 38 288 133 48 27 8 62 43 42 163 12 38 . 34 90 304 135 421 Core Hits 1052 | 5 16 10 10 7 . 18 26 23 33 5 22 . 13 168 74 26 10 16 29 19 22 81 7 11 . 14 28 118 66 175 Critical Hits 103 | . . . . . . . . 2 . . 1 . . 1 1 1 . 1 6 9 3 10 . 6 . 2 5 2 3 50 Critical Kills 21 | . . . . . . . . 1 . . 1 . . . 1 1 . 1 3 3 1 2 . 1 . 1 2 . . 3 Critical Parts Destroyed 52 | . . . . . . . . 1 . . . . . . . . . . 3 5 2 7 . 5 . 1 3 1 3 21 Melee Attacks 71 | . . . . . . . 6 . 6 1 1 . 4 53 . . . . . . . . . . . . . . . . Impact . | . . . . . . . . . . . . . . . . . . . . . . . . . . . . . . . Slashing 71 | . . . . . . . 6 . 6 1 1 . 4 53 . . . . . . . . . . . . . . . . Piercing . | . . . . . . . . . . . . . . . . . . . . . . . . . . . . . . . Sneak Attacks 5 | . . . . . . . . . 1 . . . . 4 . . . . . . . . . . . . . . . . Combat Hostiles . | . . . . . . . . . . . . . . . . . . . . . . . . . . . . . . . Follow-up Attacks . | . . . . . . . . . . . . . . . . . . . . . . . . . . . . . . . Damage Inflicted 59093 | 76 583 376 466 159 . 606 1132 1164 1776 210 849 . 680 5544 2856 1432 543 865 1800 1118 841 4823 314 1226 . 976 2036 8726 4502 13414 Guns 51943 | 76 517 376 102 159 . 269 910 623 1531 210 849 . 680 5028 2856 829 543 183 1740 1118 841 4546 280 1043 . 976 2036 7807 4219 11596 Cannons 715 | . . . . . . . . . 110 . . . . . . 140 . . 35 . . 72 34 183 . . . 99 . 42 Explosions 5220 | . 64 . 364 . . 337 222 541 . . . . . . . 463 . 661 . . . . . . . . . 760 32 1776 Melee 554 | . . . . . . . . . 102 . . . . 452 . . . . . . . . . . . . . . . . Ramming 661 | . 2 . . . . . . . 33 . . . . 64 . . . 21 25 . . 205 . . . . . 60 251 . Kinetic 49955 | 12 327 376 102 159 . 269 451 538 1240 210 849 . 680 5028 2856 147 394 115 1740 1118 841 4546 280 1043 . 976 2036 7807 4219 11596 Thermal 2022 | 64 190 . . . . . 464 85 291 . . . . . . 463 . . 35 . . 72 34 183 . . . 99 . 42 Explosive 3874 | . 64 . 364 . . 337 . 541 . . . . . . . . . . . . . . . . . . . 760 32 1776 Electromagnetic 2027 | . . . . . . . 217 . 110 . . . . . . 822 149 729 . . . . . . . . . . . . Impact . | . . . . . . . . . . . . . . . . . . . . . . . . . . . . . . . Slashing 554 | . . . . . . . . . 102 . . . . 452 . . . . . . . . . . . . . . . . Piercing . | . . . . . . . . . . . . . . . . . . . . . . . . . . . . . . . Highest Corruption 35 | . 2 2 . . . . . . 1 . . . . 2 . 1 1 2 1 . . 4 4 . . . . 5 7 35 Average Corruption 6 | . 1 2 . . . . . . 1 . . . . 1 . 1 1 1 1 . . 2 3 . . . . 1 3 24 Corruption Purged 50 | . . . . . . . . . 1 . . . . 4 . . . 1 1 . . 3 4 . . . . 13 12 11 Effects 223 | . 2 3 . . . . . . 3 . . . . . . . 2 2 1 . . 9 2 . . . . 10 16 173 Message Errors 27 | . 1 . . . . . . . 1 . . . . . . . 1 1 1 . . 5 1 . . . . 3 4 9 Matter Fused 15 | . . . . . . . . . . . . . . . . . . . . . . 1 1 . . . . . 3 10 Heat Flow Errors 10 | . . 1 . . . . . . . . . . . . . . . . . . . . . . . . . . 4 5 Energy Discharges 16 | . 1 1 . . . . . . 1 . . . . . . . . . . . . 1 . . . . . . 1 11 Parts Rejected 1 | . . . . . . . . . . . . . . . . . . . . . . . . . . . . . . 1 Data Loss (minor) 11 | . . 1 . . . . . . . . . . . . . . . . . . . 1 . . . . . 3 1 5 Data Loss (major) 4 | . . . . . . . . . . . . . . . . . . . . . . . . . . . . . 2 2 Misfires 2 | . . . . . . . . . . . . . . . . . . . . . . . . . . . . . . 2 Alerts 2 | . . . . . . . . . . . . . . . . . . . . . . . . . . . . . . 2 Misdirections 9 | . . . . . . . . . . . . . . . . . . . . . . . . . . . . . . 9 Targeting Errors 104 | . . . . . . . . . 1 . . . . . . . 1 . . . . 1 . . . . . 3 1 97 Weapon Failures 22 | . . . . . . . . . . . . . . . . . . 1 . . . . . . . . . 1 . 20 Overload Shots . | . . . . . . . . . . . . . . . . . . . . . . . . . . . . . . . Overflow Damage 456 | . . . . . . 11 3 . 62 . . . . 92 . 21 . 66 8 . . 45 . 21 . . . 24 36 67 Projectiles 34 | . . . . . . . . . . . . . . . . . . . 8 . . 5 . 21 . . . . . . Explosions 192 | . . . . . . 11 3 . . . . . . . . 21 . 66 . . . . . . . . . 24 . 67 Melee 230 | . . . . . . . . . 62 . . . . 92 . . . . . . . 40 . . . . . . 36 . Knockbacks 4 | . . . . . . . . . . . . . . . . . . . . . . 1 . . . . . . 3 . Impact 4 | . . . . . . . . . . . . . . . . . . . . . . 1 . . . . . . 3 . Kinetic . | . . . . . . . . . . . . . . . . . . . . . . . . . . . . . . . Secondary . | . . . . . . . . . . . . . . . . . . . . . . . . . . . . . . . Self-Inflicted Damage 288 | . . . . . . . 35 . . . . . . 82 . . . 128 . . . . . . . . . . . 43 Shots 6 | . . . . . . . 1 . . . . . . 2 . . . 2 . . . . . . . . . . . 1 Rammed 38 | . 1 . . 1 . . . . 3 . . . . 7 . . . 3 1 . . 7 . . . . . 5 10 . Targets Rammed 46 | . 1 . . 1 . . . . 4 . . . . 10 . . . 3 2 . . 8 . . . . . 5 12 . Kicked . | . . . . . . . . . . . . . . . . . . . . . . . . . . . . . . . Crushed 8 | . . . . . . . . . 1 . . . . 3 . . . . 1 . . 1 . . . . . . 2 . Highest Temperature 694 | 27 147 259 12 4 . 27 559 130 189 74 195 . 204 406 146 377 154 93 174 18 30 694 116 292 . 210 367 420 184 511 Average Temperature 86 | 12 52 60 6 2 . 10 186 37 39 37 61 . 92 101 43 134 66 34 37 7 7 130 61 101 . 88 103 62 59 124 Received Heat Transfer 3359 | . 165 171 45 . . 27 171 126 36 63 135 . 18 390 142 . . . 9 54 24 387 . 36 . 39 . 201 36 1084 Effects 47 | . . . . . . . 14 . . . . . . 2 . 1 . . . . . 10 . . . . 3 3 . 14 Shutdowns 8 | . . . . . . . 2 . . . . . . . . 1 . . . . . . . . . . . . . 5 Energy Bleed 7 | . . . . . . . 2 . . . . . . 1 . . . . . . . 2 . . . . 1 . . 1 Interference 8 | . . . . . . . . . . . . . . . . . . . . . . . . . . . 1 2 . 5 Matter Decay 3 | . . . . . . . . . . . . . . . . . . . . . . 1 . . . . 1 . . 1 Short Circuit 5 | . . . . . . . 1 . . . . . . . . . . . . . . 2 . . . . . 1 . 1 Damage (minor) 7 | . . . . . . . 4 . . . . . . 1 . . . . . . . 1 . . . . . . . 1 Damage (major) 8 | . . . . . . . 5 . . . . . . . . . . . . . . 3 . . . . . . . . Damage (core) 1 | . . . . . . . . . . . . . . . . . . . . . . 1 . . . . . . . . Siege Activations 30 | . . . . . . . . . . . . . . . . . . . . . 2 3 . 1 . . 3 8 5 8 Total Turns 632 | . . . . . . . . . . . . . . . . . . . . . 10 88 . 8 . . 29 141 56 300 Longest Duration 168 | . . . . . . . . . . . . . . . . . . . . . 6 41 . 8 . . 15 31 18 168 Robots Corrupted 5 | . . . . . . . . . . . . . . . . 3 . 2 . . . . . . . . . . . . Combat Hostiles 3 | . . . . . . . . . . . . . . . . 3 . . . . . . . . . . . . . . Parts Fried 14 | . . . . 1 . . . . . . . . . . . 9 . 4 . . . . . . . . . . . . Impact Corruptions 6 | . . . . . . . . . . . . . . . . . . . . . . 2 . . . . . . 4 . Robots Melted . | . . . . . . . . . . . . . . . . . . . . . . . . . . . . . . . Combat Hostiles . | . . . . . . . . . . . . . . . . . . . . . . . . . . . . . . . Parts Melted 4 | . . . . . . . 2 . . . . . . . . 1 . . . . . . . . . . . 1 . . Heat Transferred 3153 | 185 555 . . . . . 768 185 573 . . . . . . 300 . . 50 . . 100 50 200 . . . 150 . 37 Parts Sabotaged . | . . . . . . . . . . . . . . . . . . . . . . . . . . . . . . . Parts Stolen . | . . . . . . . . . . . . . . . . . . . . . . . . . . . . . . . Parts Stripped . | . . . . . . . . . . . . . . . . . . . . . . . . . . . . . . . Power Chain Reactions 4 | . . . . . . . 2 . . . . . . . . 2 . . . . . . . . . . . . . . Missiles Intercepted . | . . . . . . . . . . . . . . . . . . . . . . . . . . . . . . . Alert | -11 -10 -10 -9 -9 -9 -8 -8 -8 -7 -7 -7 -7 -6 -6 -6 -6 -6 -6 -5 -5 -5 -4 -4 -4 -4 -3 -3 -2 -1 -1 ------- Run | Scr Mat Min Mat Min Exi Min Mat Gar Fac Low Low Dat Pro Fac Ext Cet Arc Hub Fac Upp Upp Fac Upp Upp Zhi Pro Res Res Acc Com Peak Influence 816 | 20 233 128 181 88 . 102 201 471 254 . . . . 451 580 454 231 552 651 . . 795 . . . . 144 816 561 457 Initial 232 | . 11 13 42 28 . . 33 45 213 . . . . 114 12 206 85 66 232 . . 115 . . . . . 70 45 102 Average 212 | 8 82 62 58 40 . 45 62 234 128 . . . . 106 213 315 206 205 401 . . 424 . . . . 34 396 323 295 Maximum Alert Level 3 | . 1 . . . . . 1 2 1 . . . . 2 2 2 1 2 2 . . 3 . . . . . 3 2 2 Low Security (%) 54 | 100 89 100 100 100 . 100 97 52 70 . . . . 80 54 3 23 53 . . . 9 . . . . 100 28 28 9 Level 1 27 | . 10 . . . . . 2 14 29 . . . . 15 28 63 76 36 57 . . 37 . . . . . 24 49 65 Level 2 15 | . . . . . . . . 32 . . . . . 4 16 33 . 9 42 . . 45 . . . . . 27 21 24 Level 3 2 | . . . . . . . . . . . . . . . . . . . . . . 7 . . . . . 20 . . Level 4 . | . . . . . . . . . . . . . . . . . . . . . . . . . . . . . . . Level 5 . | . . . . . . . . . . . . . . . . . . . . . . . . . . . . . . . High Security . | . . . . . . . . . . . . . . . . . . . . . . . . . . . . . . . Max Security . | . . . . . . . . . . . . . . . . . . . . . . . . . . . . . . . Squads Dispatched 50 | . 1 . 1 . . . 1 . 3 . . . . 12 3 . . . 1 . . 5 . . . . 4 9 8 2 Investigation 9 | . 1 . . . . . . . 1 . . . . 2 . . . . . . . . . . . . 3 1 1 . Extermination 25 | . . . . . . . . . 1 . . . . 7 . . . . 1 . . 3 . . . . . 5 6 2 Reinforcement 11 | . . . 1 . . . 1 . 1 . . . . 3 1 . . . . . . 1 . . . . 1 1 1 . Assault 5 | . . . . . . . . . . . . . . . 2 . . . . . . 1 . . . . . 2 . . Garrison . | . . . . . . . . . . . . . . . . . . . . . . . . . . . . . . . Intercept . | . . . . . . . . . . . . . . . . . . . . . . . . . . . . . . . Construction Impeded 1 | . . . . . . . 1 . . . . . . . . . . . . . . . . . . . . . . . Haulers Reinforced 2 | . . . . . . . . . . . . . . 2 . . . . . . . . . . . . . . . . Stealth | -11 -10 -10 -9 -9 -9 -8 -8 -8 -7 -7 -7 -7 -6 -6 -6 -6 -6 -6 -5 -5 -5 -4 -4 -4 -4 -3 -3 -2 -1 -1 --------- Run | Scr Mat Min Mat Min Exi Min Mat Gar Fac Low Low Dat Pro Fac Ext Cet Arc Hub Fac Upp Upp Fac Upp Upp Zhi Pro Res Res Acc Com Distress Signals 39 | . 1 . 3 . . . . . . . . . . . . 2 . . 2 . . . . . . . 8 . . 23 Communications Jammed 135 | . . . . . . . . . . . . . . 4 12 . . . 9 . . 72 . . . . . 21 17 . Distress Signals 134 | . . . . . . . . . . . . . . 4 12 . . . 8 . . 72 . . . . . 21 17 . Times Spotted 456 | . 9 9 15 2 . 3 12 21 10 2 13 . 8 44 53 15 4 4 19 13 7 33 3 5 . 6 12 52 24 58 Peak Tracking Total 21 | . 3 3 4 1 . 3 4 11 3 2 5 . 4 4 13 5 2 3 4 4 2 7 3 4 . 3 4 5 5 21 Tactical Retreats 22 | . 1 3 2 . . 1 . 3 . . . . . 1 2 . . 1 . . . 3 . . . . . 3 . 2 Traps | -11 -10 -10 -9 -9 -9 -8 -8 -8 -7 -7 -7 -7 -6 -6 -6 -6 -6 -6 -5 -5 -5 -4 -4 -4 -4 -3 -3 -2 -1 -1 ------- Run | Scr Mat Min Mat Min Exi Min Mat Gar Fac Low Low Dat Pro Fac Ext Cet Arc Hub Fac Upp Upp Fac Upp Upp Zhi Pro Res Res Acc Com Traps Triggered 20 | . 3 . . . . . . . 1 . . . . 2 . . . . 1 . . 3 . . . . . 2 6 2 Indirectly . | . . . . . . . . . . . . . . . . . . . . . . . . . . . . . . . Trap Hack Attempts . | . . . . . . . . . . . . . . . . . . . . . . . . . . . . . . . Triggered . | . . . . . . . . . . . . . . . . . . . . . . . . . . . . . . . Disarmed . | . . . . . . . . . . . . . . . . . . . . . . . . . . . . . . . Reprogrammed . | . . . . . . . . . . . . . . . . . . . . . . . . . . . . . . . Reused . | . . . . . . . . . . . . . . . . . . . . . . . . . . . . . . . Traps Extracted . | . . . . . . . . . . . . . . . . . . . . . . . . . . . . . . . Installed . | . . . . . . . . . . . . . . . . . . . . . . . . . . . . . . . Triggered 3 | . . . . . . . . . . . . . . . . . . . . 1 . . . 2 . . . . . . Machines | -11 -10 -10 -9 -9 -9 -8 -8 -8 -7 -7 -7 -7 -6 -6 -6 -6 -6 -6 -5 -5 -5 -4 -4 -4 -4 -3 -3 -2 -1 -1 ---------- Run | Scr Mat Min Mat Min Exi Min Mat Gar Fac Low Low Dat Pro Fac Ext Cet Arc Hub Fac Upp Upp Fac Upp Upp Zhi Pro Res Res Acc Com Machines Disabled 38 | . . . . . . 1 3 . . . . . . 6 4 . 2 8 . . . 4 . . . . . 2 5 3 Max in Single Turn 4 | . . . . . . 1 1 . . . . . . 4 1 . 1 4 . . . 1 . . . . . 1 1 2 Garrison Access 14 | . . . . . . . . . 1 . . . . 4 . . . 1 2 . . 2 . . . . 1 1 2 . Phase Generator 1 | . . . . . . . . . . . . . . . . . . . . . . . . . . . . . . 1 Network Hub 2 | . . . . . . . . . . . . . . . . . . 2 . . . . . . . . . . . . Machines Sabotaged . | . . . . . . . . . . . . . . . . . . . . . . . . . . . . . . . Garrisons Compromised . | . . . . . . . . . . . . . . . . . . . . . . . . . . . . . . . Overloaded Fab Kills . | . . . . . . . . . . . . . . . . . . . . . . . . . . . . . . . Fab Network Shutdowns 2 | . . . . . . . . . . . . . . 1 . . . . . . . 1 . . . . . . . . Hacking | -11 -10 -10 -9 -9 -9 -8 -8 -8 -7 -7 -7 -7 -6 -6 -6 -6 -6 -6 -5 -5 -5 -4 -4 -4 -4 -3 -3 -2 -1 -1 --------- Run | Scr Mat Min Mat Min Exi Min Mat Gar Fac Low Low Dat Pro Fac Ext Cet Arc Hub Fac Upp Upp Fac Upp Upp Zhi Pro Res Res Acc Com Machines Accessed 104 | . 4 . 4 . 1 . 4 . 6 . . 2 . 26 5 1 . 2 11 . . 11 . . 4 . 6 10 6 1 Terminals 65 | . 4 . 4 . . . 3 . 2 . . . . 16 5 1 . 1 7 . . 5 . . . . 4 8 4 1 Fabricators 11 | . . . . . . . . . 3 . . . . 3 . . . . 1 . . 3 . . . . . 1 . . Repair Stations 6 | . . . . . . . . . . . . . . 3 . . . . 1 . . 1 . . . . 1 . . . Recycling Units . | . . . . . . . . . . . . . . . . . . . . . . . . . . . . . . . Scanalyzers . | . . . . . . . . . . . . . . . . . . . . . . . . . . . . . . . Garrison Access 15 | . . . . . . . 1 . 1 . . . . 4 . . . 1 2 . . 2 . . . . 1 1 2 . Total Hacks 390 | . 12 . 19 . 1 . 20 . 13 . . 19 . 65 15 1 . 3 51 . . 45 . . 17 . 30 57 21 1 Successful 216 | . 8 . 11 . 1 . 11 . 9 . . 19 . 41 8 1 . 2 18 . . 28 . . 17 . 14 18 9 1 Failed 170 | . 4 . 7 . . . 8 . 3 . . . . 23 7 . . 1 33 . . 17 . . . . 16 39 12 . Catastrophic 21 | . 1 . . . . . . . . . . . . 2 2 . . . 5 . . 2 . . . . 2 5 2 . Database Lockouts 4 | . . . 1 . . . 1 . 1 . . . . 1 . . . . . . . . . . . . . . . . Manual 183 | . 11 . 18 . 1 . 20 . 6 . . . . 30 11 1 . 2 33 . . 18 . . . . 16 12 4 . Terminals 285 | . 12 . 19 . . . 19 . 6 . . . . 45 15 1 . 2 44 . . 25 . . . . 25 52 19 1 Fabricators 34 | . . . . . . . . . 6 . . . . 10 . . . . 1 . . 13 . . . . . 4 . . Repair Stations 19 | . . . . . . . . . . . . . . 6 . . . . 4 . . 5 . . . . 4 . . . Recycling Units . | . . . . . . . . . . . . . . . . . . . . . . . . . . . . . . . Scanalyzers . | . . . . . . . . . . . . . . . . . . . . . . . . . . . . . . . Garrison Access 15 | . . . . . . . 1 . 1 . . . . 4 . . . 1 2 . . 2 . . . . 1 1 2 . Terminal Hacks 123 | . 4 . 6 . 1 . 6 . 3 . . 19 . 20 4 1 . . 12 . . 9 . . 17 . 4 12 4 1 Record 14 | . . . . . . . . . . . . . . 3 2 . . . 3 . . . . . 5 . . 1 . . Part Schematic 18 | . 1 . 1 . . . 1 . 2 . . 8 . . . . . . 1 . . . . . 4 . . . . . Robot Schematic 8 | . . . . . . . . . . . . 8 . . . . . . . . . . . . . . . . . . Robot Analysis 16 | . . . 1 . . . 2 . . . . . . 3 . . . . 2 . . 3 . . 4 . . 1 . . Prototype ID Bank 11 | . . . . . . . 1 . . . . 3 . 1 . . . . 1 . . 1 . . 4 . . . . . Open Door 2 | . . . . . . . . . . . . . . . . 1 . . . . . . . . . . . . . 1 Level Access Points 3 | . . . . . . . . . . . . . . . . . . . . . . . . . . . 1 1 1 . Branch Access Points 6 | . . . 1 . . . . . 1 . . . . . . . . . 1 . . 1 . . . . . 1 1 . Machine Index 2 | . . . . . . . . . . . . . . . . . . . . . . . . . . . 1 1 . . Terminal Index 4 | . 1 . 1 . . . . . . . . . . . . . . . 1 . . . . . . . . 1 . . Garrison Index 2 | . . . . . . . . . . . . . . 1 . . . . . . . . . . . . . 1 . . Unreport Threat 13 | . . . . . . . 1 . . . . . . 4 . . . . 2 . . 2 . . . . . 4 . . Locate Traps 12 | . . . . . . . . . . . . . . 5 2 . . . 1 . . 1 . . . . 1 . 2 . Hauler Manifests 3 | . 1 . . . . . . . . . . . . 1 . . . . . . . . . . . . 1 . . . Registered Components 3 | . . . . . . . . . . . . . . 1 . . . . . . . 1 . . . . . 1 . . Zone Layout 5 | . 1 . 2 . . . 1 . . . . . . 1 . . . . . . . . . . . . . . . . EX-Prototype ID Bank 1 | . . . . . 1 . . . . . . . . . . . . . . . . . . . . . . . . . Fabricator Hacks 18 | . . . . . . . . . 3 . . . . 6 . . . . . . . 8 . . . . . 1 . . Load Schematic 9 | . . . . . . . . . 1 . . . . 3 . . . . . . . 4 . . . . . 1 . . Build 9 | . . . . . . . . . 2 . . . . 3 . . . . . . . 4 . . . . . . . . Repair Station Hacks 12 | . . . . . . . . . . . . . . 3 . . . . 1 . . 4 . . . . 4 . . . Scan Component 7 | . . . . . . . . . . . . . . 2 . . . . 1 . . 2 . . . . 2 . . . Repair 5 | . . . . . . . . . . . . . . 1 . . . . . . . 2 . . . . 2 . . . Recycling Unit Hacks . | . . . . . . . . . . . . . . . . . . . . . . . . . . . . . . . Scanalyzer . | . . . . . . . . . . . . . . . . . . . . . . . . . . . . . . . Garrison Access Hacks 15 | . . . . . . . 1 . 1 . . . . 4 . . . 1 2 . . 2 . . . . 1 1 2 . Unlock Access 1 | . . . . . . . 1 . . . . . . . . . . . . . . . . . . . . . . . Seal Access 14 | . . . . . . . . . 1 . . . . 4 . . . 1 2 . . 2 . . . . 1 1 2 . Unauthorized Hacks 48 | . 4 . 5 . . . 4 . 2 . . . . 8 4 . . 1 3 . . 5 . . . . 5 4 3 . Terminals 45 | . 4 . 5 . . . 4 . 1 . . . . 7 4 . . 1 3 . . 4 . . . . 5 4 3 . Track 8 | . 2 . . . . . 1 . . . . . . 2 . . . . . . . 1 . . . . 1 1 . . Assimilate 5 | . . . 2 . . . 1 . . . . . . 2 . . . . . . . . . . . . . . . . Botnet 20 | . 2 . 2 . . . 1 . 1 . . . . 2 2 . . . 2 . . 2 . . . . 2 2 2 . Disrupt 2 | . . . . . . . . . . . . . . . . . . 1 . . . . . . . . 1 . . . Operators 10 | . . . 1 . . . 1 . . . . . . 1 2 . . . 1 . . 1 . . . . 1 1 1 . Fabricators 3 | . . . . . . . . . 1 . . . . 1 . . . . . . . 1 . . . . . . . . Haulers 3 | . . . . . . . . . 1 . . . . 1 . . . . . . . 1 . . . . . . . . Repair Stations . | . . . . . . . . . . . . . . . . . . . . . . . . . . . . . . . Recycling Units . | . . . . . . . . . . . . . . . . . . . . . . . . . . . . . . . Scanalyzers . | . . . . . . . . . . . . . . . . . . . . . . . . . . . . . . . Garrison Access . | . . . . . . . . . . . . . . . . . . . . . . . . . . . . . . . Data Cores Recovered 2 | . . . . . . . . . . . . . . . . . . . 1 . . . . . . . . 1 . . Used . | . . . . . . . . . . . . . . . . . . . . . . . . . . . . . . . Hacking Detections 75 | . 4 . 4 . . . 3 . 5 . . . . 20 5 . . 1 9 . . 7 . . . . 4 9 4 . Full Trace Events 5 | . . . . . . . . . 1 . . . . 2 . . . . . . . . . . . . . 1 1 . Feedback Events . | . . . . . . . . . . . . . . . . . . . . . . . . . . . . . . . Feedback Blocked . | . . . . . . . . . . . . . . . . . . . . . . . . . . . . . . . Robot Schematics Acquired 8 | . . . . . . . . . . . . 8 . . . . . . . . . . . . . . . . . . Robots Built 3 | . . . . . . . . . 3 . . . . . . . . . . . . . . . . . . . . . Matter 186 | . . . . . . . . . 186 . . . . . . . . . . . . . . . . . . . . . Time 33 | . . . . . . . . . 33 . . . . . . . . . . . . . . . . . . . . . Total Robot Build Rating 6 | . . . . . . . . . 6 . . . . . . . . . . . . . . . . . . . . . Part Schematics Acquired 18 | . 1 . 1 . . . 1 . 2 . . 8 . . . . . . 1 . . . . . 4 . . . . . Parts Built 8 | . . . . . . . . . 2 . . . . 2 . . . . . . . 4 . . . . . . . . Matter 1253 | . . . . . . . . . 168 . . . . 669 . . . . . . . 416 . . . . . . . . Time 425 | . . . . . . . . . 42 . . . . 280 . . . . . . . 103 . . . . . . . . Total Part Build Rating 35 | . . . . . . . . . 8 . . . . 13 . . . . . . . 14 . . . . . . . . Parts Repaired 5 | . . . . . . . . . . . . . . 1 . . . . . . . 2 . . . . 2 . . . Time 279 | . . . . . . . . . . . . . . 22 . . . . . . . 93 . . . . 164 . . . Parts Recycled . | . . . . . . . . . . . . . . . . . . . . . . . . . . . . . . . Recycled Matter . | . . . . . . . . . . . . . . . . . . . . . . . . . . . . . . . Retrieved Matter . | . . . . . . . . . . . . . . . . . . . . . . . . . . . . . . . Retrieved Components . | . . . . . . . . . . . . . . . . . . . . . . . . . . . . . . . Parts Scanalyzed . | . . . . . . . . . . . . . . . . . . . . . . . . . . . . . . . Part Schematics Acquired . | . . . . . . . . . . . . . . . . . . . . . . . . . . . . . . . Parts Damaged . | . . . . . . . . . . . . . . . . . . . . . . . . . . . . . . . Bothacking | -11 -10 -10 -9 -9 -9 -8 -8 -8 -7 -7 -7 -7 -6 -6 -6 -6 -6 -6 -5 -5 -5 -4 -4 -4 -4 -3 -3 -2 -1 -1 ------------ Run | Scr Mat Min Mat Min Exi Min Mat Gar Fac Low Low Dat Pro Fac Ext Cet Arc Hub Fac Upp Upp Fac Upp Upp Zhi Pro Res Res Acc Com Used RIF Installer 1 | . . . . . . . . 1 . . . . . . . . . . . . . . . . . . . . . . Robots Hacked . | . . . . . . . . . . . . . . . . . . . . . . . . . . . . . . . Non-combat . | . . . . . . . . . . . . . . . . . . . . . . . . . . . . . . . Combat . | . . . . . . . . . . . . . . . . . . . . . . . . . . . . . . . Robot Hacks Applied . | . . . . . . . . . . . . . . . . . . . . . . . . . . . . . . . Relay Couplers Released 8 | . . . . . . . . . . . . . . . . . . . . . . . . . . . 4 4 . . Programmers 8 | . . . . . . . . . . . . . . . . . . . . . . . . . . . 4 4 . . Robots Rewired 22 | . . . . . . . . . . . . . . . 20 . . . . 2 . . . . . . . . . . Allies Hacked . | . . . . . . . . . . . . . . . . . . . . . . . . . . . . . . . Hacks Repelled . | . . . . . . . . . . . . . . . . . . . . . . . . . . . . . . . Allies | -11 -10 -10 -9 -9 -9 -8 -8 -8 -7 -7 -7 -7 -6 -6 -6 -6 -6 -6 -5 -5 -5 -4 -4 -4 -4 -3 -3 -2 -1 -1 -------- Run | Scr Mat Min Mat Min Exi Min Mat Gar Fac Low Low Dat Pro Fac Ext Cet Arc Hub Fac Upp Upp Fac Upp Upp Zhi Pro Res Res Acc Com Total Allies 41 | . . . 1 . . . 1 . 3 . . . 1 . 25 5 . . . 2 . 3 . . . . . . . . Largest Group 15 | . . . 1 . . . 1 . 3 3 3 2 3 3 15 12 7 6 4 2 2 3 . . . . . . . . Highest-Rated Group 654 | . . . 10 . . . 10 . 54 54 54 36 130 130 579 654 654 492 370 56 56 138 . . . . . . . . Highest-Rated Ally 156 | . . . 10 . . . 10 . 18 18 18 18 94 94 156 156 156 94 94 31 31 46 . . . . . . . . Total Orders 30 | . . . 1 . . . . . 5 1 1 . 1 1 6 10 . 2 . 1 1 . . . . . . . . . STAY 11 | . . . 1 . . . . . 2 . . . . . 3 4 . 1 . . . . . . . . . . . . FOLLOW 4 | . . . . . . . . . . . . . . . 2 2 . . . . . . . . . . . . . . GUARD 15 | . . . . . . . . . 3 1 1 . 1 1 1 4 . 1 . 1 1 . . . . . . . . . Ally Attacks 343 | . . . . . . . . . 6 1 14 . 14 22 104 75 27 7 37 9 5 22 . . . . . . . . Total Damage 8773 | . . . . . . . . . 159 . 336 . 415 743 2163 1964 759 247 1182 128 109 568 . . . . . . . . Kills 64 | . . . . . . . . . 2 . 4 . 3 5 21 5 2 3 12 2 . 5 . . . . . . . . Allies Corrupted 4 | . . . . . . . . . . . . . . . . . . 1 3 . . . . . . . . . . . Allies Melted . | . . . . . . . . . . . . . . . . . . . . . . . . . . . . . . . Intel | -11 -10 -10 -9 -9 -9 -8 -8 -8 -7 -7 -7 -7 -6 -6 -6 -6 -6 -6 -5 -5 -5 -4 -4 -4 -4 -3 -3 -2 -1 -1 ------- Run | Scr Mat Min Mat Min Exi Min Mat Gar Fac Low Low Dat Pro Fac Ext Cet Arc Hub Fac Upp Upp Fac Upp Upp Zhi Pro Res Res Acc Com Robot Analysis Total 16 | . . . 1 . . . 2 . . . . . . 3 . . . . 2 . . 3 . . 4 . . 1 . . Derelict Logs Recovered 10 | . . 1 . 1 . . . . . 1 1 . . . . . . . . 2 2 . 1 1 . . . . . . Drone Launches . | . . . . . . . . . . . . . . . . . . . . . . . . . . . . . . . Drone Recoveries . | . . . . . . . . . . . . . . . . . . . . . . . . . . . . . . . Exploration | -11 -10 -10 -9 -9 -9 -8 -8 -8 -7 -7 -7 -7 -6 -6 -6 -6 -6 -6 -5 -5 -5 -4 -4 -4 -4 -3 -3 -2 -1 -1 ------------- Run | Scr Mat Min Mat Min Exi Min Mat Gar Fac Low Low Dat Pro Fac Ext Cet Arc Hub Fac Upp Upp Fac Upp Upp Zhi Pro Res Res Acc Com Turns Passed 25496 | 87 509 335 484 454 423 487 513 261 1354 466 633 124 262 4534 1400 400 213 328 1037 614 792 1813 419 314 213 423 1373 2065 1714 1452 Spaces Moved 12783 | 41 242 173 249 262 262 264 232 117 721 277 350 77 132 2406 682 185 104 161 528 326 441 804 233 161 124 231 746 930 791 531 Core 9 | 9 . . . . . . . . . . . . . . . . . . . . . . . . . . . . . . Treads 12774 | 32 242 173 249 262 262 264 232 117 721 277 350 77 132 2406 682 185 104 161 528 326 441 804 233 161 124 231 746 930 791 531 Legs . | . . . . . . . . . . . . . . . . . . . . . . . . . . . . . . . Wheels . | . . . . . . . . . . . . . . . . . . . . . . . . . . . . . . . Hover . | . . . . . . . . . . . . . . . . . . . . . . . . . . . . . . . Flight . | . . . . . . . . . . . . . . . . . . . . . . . . . . . . . . . Fastest Speed 50 | 50 160 160 160 160 160 160 160 160 160 160 160 160 160 157 160 160 160 160 160 160 160 160 160 163 163 163 151 148 155 155 Average Speed 159 | 135 160 160 160 160 160 160 160 160 160 160 160 160 160 158 160 160 163 160 162 160 160 163 162 163 163 163 156 152 155 162 Slowest Speed 189 | 160 160 160 160 160 160 180 180 160 180 180 180 160 160 160 160 160 180 160 185 185 160 185 163 163 163 163 171 170 155 189 Overloaded Moves . | . . . . . . . . . . . . . . . . . . . . . . . . . . . . . . . Propulsion Burnouts . | . . . . . . . . . . . . . . . . . . . . . . . . . . . . . . . Robots Hopped . | . . . . . . . . . . . . . . . . . . . . . . . . . . . . . . . Cave-ins Triggered 1 | . . . . . . . . . . . . . . . . . . . . . . . . . . . . 1 . . Exploration Rate (%) 45 | 3 41 48 29 65 68 51 24 34 24 52 49 68 30 75 84 74 88 23 18 63 75 29 50 38 57 57 26 30 21 25 Regions Visited 30 Branch Regions 19 Pre-discovered Areas 4 | . . . . . . . . . . 1 . . . . . . . . . . . . . . 3 . . . . . Known Exits Taken 10 | . . . 1 . . . 1 . 1 . . . . 1 . . . . 1 . . 1 . . . 1 1 1 1 . Unknown Exits Taken 19 | 1 1 1 . 1 1 1 . . . 1 1 1 1 . 1 1 1 1 . 1 1 . 1 1 1 . . . . . Scrap Searched 14 | . . 1 . 2 . . . . . 3 . . 1 . . . . . . 2 2 . 2 1 . . . . . . Spaces Dug 403 | . . . 4 10 . 37 6 . 5 1 1 . 3 48 . . . 173 10 . . 24 . 3 . 6 6 34 29 3 Terrain Destroyed 1001 | . 8 . 36 10 . 74 14 9 9 1 1 . 3 87 3 20 . 368 12 2 5 53 4 8 . 11 11 88 76 88 Melee 63 | . . . . . . . 6 . 5 1 1 . 3 47 . . . . . . . . . . . . . . . . Projectile 225 | . . . 4 . . . . 3 4 . . . . 1 3 . . 20 12 2 5 53 4 8 . 11 11 62 12 10 AOE 713 | . 8 . 32 10 . 74 8 6 . . . . . 39 . 20 . 348 . . . . . . . . . 26 64 78 Terrain Rammed . | . . . . . . . . . . . . . . . . . . . . . . . . . . . . . . . Walls Destroyed . | . . . . . . . . . . . . . . . . . . . . . . . . . . . . . . . Machines Disabled . | . . . . . . . . . . . . . . . . . . . . . . . . . . . . . . . Actions | -11 -10 -10 -9 -9 -9 -8 -8 -8 -7 -7 -7 -7 -6 -6 -6 -6 -6 -6 -5 -5 -5 -4 -4 -4 -4 -3 -3 -2 -1 -1 --------- Run | Scr Mat Min Mat Min Exi Min Mat Gar Fac Low Low Dat Pro Fac Ext Cet Arc Hub Fac Upp Upp Fac Upp Upp Zhi Pro Res Res Acc Com Total 15939 | 60 312 194 304 282 266 293 311 150 837 290 397 77 158 2860 913 259 128 191 640 368 477 1139 258 186 135 251 889 1275 1187 852 Wait 741 | . 17 1 4 . . 1 18 1 4 1 1 . 4 81 35 2 8 4 7 . 2 122 14 5 . 2 7 61 283 56 Move 12751 | 40 241 172 248 261 261 263 231 115 720 276 349 76 131 2405 681 184 103 160 527 325 440 803 232 160 123 230 745 929 790 530 Hop . | . . . . . . . . . . . . . . . . . . . . . . . . . . . . . . . Pick Up 177 | 6 11 . 15 2 3 1 6 3 17 2 4 . . 19 2 15 . . 13 2 . 22 . . . . 16 12 3 3 Fast Attach 108 | 5 1 . 1 . . . 3 1 5 . 4 . . 20 1 5 2 . 6 . . 2 1 1 6 . 10 14 5 15 Attach 110 | 3 1 . 4 . . . 6 2 6 . 1 . . 9 . 6 . . 4 2 1 16 . . . . 13 10 3 23 Detach 42 | . 1 . 3 . . . . . 3 . . . . . . 2 . . 5 2 1 5 . . . . 8 3 1 8 Swap 559 | . 8 . 11 6 1 8 8 12 22 4 11 1 5 96 14 8 2 8 24 6 13 55 4 8 . 6 30 85 39 64 Drop 222 | 1 5 . 4 3 1 1 8 . 14 2 8 . . 44 3 15 2 . 12 . . 17 1 . 6 . 24 30 7 14 Fire 983 | 5 26 21 14 9 . 19 25 16 36 4 18 . 14 123 59 22 11 16 40 22 20 88 6 12 . 13 36 126 44 138 Melee 71 | . . . . . . . 6 . 6 1 1 . 4 53 . . . . . . . . . . . . . . . . Ram . | . . . . . . . . . . . . . . . . . . . . . . . . . . . . . . . Kick . | . . . . . . . . . . . . . . . . . . . . . . . . . . . . . . . Crush 46 | . 1 . . 1 . . . . 4 . . . . 10 . . . 3 2 . . 8 . . . . . 5 12 . Escape Stasis . | . . . . . . . . . . . . . . . . . . . . . . . . . . . . . . . Rewire 129 | . . . . . . . . . . . . . . . 118 . . . . 9 . 1 . . . . . . . 1 Trap . | . . . . . . . . . . . . . . . . . . . . . . . . . . . . . . . Miscellaneous . | . . . . . . . . . . . . . . . . . . . . . . . . . . . . . . . Route ------- -11/Scrapyard -10/Materials (discovered 2 exits: *Mat / [*Min]) -10/Mines -9/Materials -9/Mines (discovered 3 exits: *Mat x2 / *Exi) -9/Exiles -8/Mines -8/Materials -8/Garrison -7/Factory (discovered 3 exits: Sto / *Low x2) -7/Lower Caves -7/Lower Caves -7/Data Miner -6/Proximity Caves -6/Factory (discovered 8 exits: *Fac x4 / [*Low x2] / *Ext x2) -6/Extension (discovered 3 exits: *Fac x2 / *Cet) -6/Cetus (discovered 2 exits: *Fac / *Arc) -6/Archives (discovered 3 exits: *Fac / *Hub x2) -6/Hub_04(d) (discovered 3 exits: *Fac x3) -5/Factory (discovered 2 exits: *Upp x2) -5/Upper Caves -5/Upper Caves (discovered 2 exits: *Fac / *War) -4/Factory (discovered 4 exits: Res / *Upp x2 / *Arm) -4/Upper Caves -4/Upper Caves -4/Zhirov -3/Proximity Caves -3/Research (discovered 4 exits: *Res x3 / [Qua]) -2/Research (discovered 5 exits: *Acc x3 / *Tes x2) -1/Access (discovered 2 exits: Sur / *Com) -1/Command 0b11 Command History --------- Turn | Location | Event 14 | -11/Scrapyard | Discovered new exit (range 15) 88 | -11/Scrapyard | Entered Materials 190 | -10/Materials | Discovered new exit (range 16) 302 | -10/Materials | Build established: Mutant 306 | -10/Materials | Discovered new exit (range 16) 597 | -10/Materials | Entered Mines 628 | -10/Mines | Learned Materials stockpile data 907 | -10/Mines | Discovered new exit (range 12) 932 | -10/Mines | Entered Materials 932 | -9/Materials | Evolved 2 slots: Propulsion x1, Utility x1 1053 | -9/Materials | Identified exit to Mines 1207 | -9/Materials | Central database locked down 1416 | -9/Materials | Entered Mines 1468 | -9/Mines | Learned Materials machine intel 1534 | -9/Mines | Assembled infested the area 1539 | -9/Mines | Assisted by a Guerilla fighting off Assembled 1569 | -9/Mines | Discovered new exit (range 8) 1600 | -9/Mines | Discovered new exit (range 12) 1864 | -9/Mines | Deemed a non-threat by the Exiles lab entrance 1864 | -9/Mines | Discovered new exit (range 5) 1870 | -9/Mines | Entered Exiles 1909 | -9/Exiles | Met 8R-AWN 1936 | -9/Exiles | Met EX-HEX 1979 | -9/Exiles | Met EX-BIN 1998 | -9/Exiles | Aligned with FarCom system 2000 | -9/Exiles | Given EX-Vault access code 2037 | -9/Exiles | Opened EX-Vault 2049 | -9/Exiles | Found Superbattery 2086 | -9/Exiles | Warned to stay clear of 0b10 Research branches 2129 | -9/Exiles | Met EX-DEC 2280 | -9/Exiles | Discovered new exit (range 10) 2293 | -9/Exiles | Left Exiles lab with Superbattery 2293 | -9/Exiles | Entered Mines 2741 | -8/Mines | Discovered new exit (range 13) 2780 | -8/Mines | Entered Materials 2780 | -8/Materials | Evolved 2 slots: Utility x1, Weapon x1 2781 | -8/Materials | Loaded intel: 77 machine locations 3074 | -8/Materials | Central database locked down 3278 | -8/Materials | Identified exit to Garrison 3293 | -8/Materials | Entered Garrison 3301 | -8/Garrison | Installed Relay Interface Framework 3448 | -8/Garrison | Triggered checkpoint 3469 | -8/Garrison | Destroyed 14 combat bots 3484 | -8/Garrison | Triggered checkpoint 3529 | -8/Garrison | Discovered new exit (range 13) 3553 | -8/Garrison | Identified exit to Factory 3554 | -8/Garrison | Entered Factory 3554 | -7/Factory | Evolved 2 slots: Propulsion x1, Utility x1 3597 | -7/Factory | Build established: Scavenger-Skirmisher 4085 | -7/Factory | Identified exit to Storage 4085 | -7/Factory | Identified exit to Lower Caves 4287 | -7/Factory | Fabricated L-31 Rogue? 4546 | -7/Factory | Central database locked down 4763 | -7/Factory | Fabricated Weapon Cycler? 4908 | -7/Factory | Entered Lower Caves 4908 | -7/Lower Caves | Accompanied by 3 allies 5008 | -7/Lower Caves | Spotted B-75 Beast 5136 | -7/Lower Caves | Encountered a Warlord checkpoint 5162 | -7/Lower Caves | Learned location of Zion (-6) 5365 | -7/Lower Caves | Discovered new exit (range 6) 5374 | -7/Lower Caves | Entered another Lower Caves area 5374 | -7/Lower Caves | Accompanied by 3 allies 5595 | -7/Lower Caves | Learned 8 Factory zone layouts 5779 | -7/Lower Caves | Encountered a Warlord checkpoint 5804 | -7/Lower Caves | Attracted the attention of an 0b10 checkpoint 5871 | -7/Lower Caves | Found Alien Artifact 5871 | -7/Lower Caves | Identified Core Expander 5871 | -7/Lower Caves | Installed Core Expander, added new Propulsion slot 5994 | -7/Lower Caves | Discovered new exit (range 8) 6007 | -7/Lower Caves | Entered Data Miner 6007 | -7/Data Miner | Accompanied by 2 allies 6009 | -7/Data Miner | Discovered new exit (range 6) 6039 | -7/Data Miner | Met Data Miner 6092 | -7/Data Miner | Received God Mode back door access code from Data Miner 6131 | -7/Data Miner | Entered Proximity Caves 6131 | -6/Proximity Caves | Accompanied by 2 allies 6143 | -6/Proximity Caves | Escorted by Enhanced Grunt 6384 | -6/Proximity Caves | Discovered new exit (range 4) 6393 | -6/Proximity Caves | Entered Factory 6393 | -6/Factory | Accompanied by 3 allies 6393 | -6/Factory | Evolved 2 slots: Utility x2 6394 | -6/Factory | Identified exit to Extension 7077 | -6/Factory | Fabricated Exp. Terrain Scan Processor (x1) 7100 | -6/Factory | Build established: Scavenger-Assassin 7179 | -6/Factory | Repaired Lrn. Terrain Scanner 7180 | -6/Factory | Incoming investigation squad redirected 7624 | -6/Factory | Discovered exit to Extension (range 23) 7697 | -6/Factory | Fabricated Exp. Transmission Jammer? 7791 | -6/Factory | Local fabrication network quarantined 7820 | -6/Factory | Build established: Scavenger-Skirmisher 8529 | -6/Factory | Discovered new exit (range 21) 8553 | -6/Factory | Assembled infested ambush trap array 8640 | -6/Factory | Incoming assault squad redirected 8713 | -6/Factory | Found Exp. Terrain Scan Processor 9096 | -6/Factory | Discovered new exit (range 15) 9279 | -6/Factory | Central database locked down 9384 | -6/Factory | Discovered new exit (range 24) 9420 | -6/Factory | Discovered new exit (range 24) 10002 | -6/Factory | Build established: Hauler-Assassin 10059 | -6/Factory | Discovered new exit (range 21) 10061 | -6/Factory | Discovered new exit (range 20) 10927 | -6/Factory | Entered Extension 11552 | -6/Extension | Disrupted transfer network 11665 | -6/Extension | Build established: Commander-Tank 11753 | -6/Extension | Spotted B-75 Beast 11766 | -6/Extension | Destroyed B-75 Beast 11780 | -6/Extension | Destroyed B-75 Beast 11857 | -6/Extension | Discovered new exit (range 15) 11885 | -6/Extension | Rescued a captive Derelict 11921 | -6/Extension | Rescued a captive Derelict 11950 | -6/Extension | Rescued a captive Derelict 11951 | -6/Extension | Rescued a captive Derelict 12214 | -6/Extension | Rescued A7 12299 | -6/Extension | Discovered new exit (range 10) 12301 | -6/Extension | Discovered new exit (range 6) 12327 | -6/Extension | First assault squad dispatched 12327 | -6/Extension | Entered Cetus 12327 | -6/Cetus | Accompanied by 12 allies (A7) 12332 | -6/Cetus | Acquired a Cetus Manufacturing Module code from A7 12357 | -6/Cetus | Spotted Cetus Guard 12359 | -6/Cetus | Spotted Cetus Guard 12364 | -6/Cetus | Destroyed Cetus Guard 12364 | -6/Cetus | Spotted Cetus Guard 12366 | -6/Cetus | Spotted Cetus Guard 12373 | -6/Cetus | Destroyed Cetus Guard 12380 | -6/Cetus | Allies destroyed Cetus Guard 12511 | -6/Cetus | Started Cetus Manufacturing Module 12536 | -6/Cetus | Manufactured an Enhanced Grunt 12554 | -6/Cetus | Discovered new exit (range 15) 12561 | -6/Cetus | Manufactured an Enhanced Grunt 12584 | -6/Cetus | Spotted Cetus Guard 12585 | -6/Cetus | Spotted Cetus Guard 12586 | -6/Cetus | Manufactured an Enhanced Grunt 12586 | -6/Cetus | Destroyed Cetus Guard 12588 | -6/Cetus | Spotted Cetus Guard 12593 | -6/Cetus | Destroyed Cetus Guard 12593 | -6/Cetus | Spotted Cetus Guard 12596 | -6/Cetus | Allies destroyed Cetus Guard 12598 | -6/Cetus | Allies destroyed Cetus Guard 12610 | -6/Cetus | Discovered new exit (range 16) 12611 | -6/Cetus | Manufactured an Enhanced Grunt 12618 | -6/Cetus | Met Revision 17 12636 | -6/Cetus | Manufactured an Enhanced Grunt 12727 | -6/Cetus | Entered Archives 12727 | -6/Archives | Accompanied by 7 allies (A7) 12794 | -6/Archives | Unable to access archive contents 12799 | -6/Archives | Discovered new exit (range 15) 12813 | -6/Archives | Discovered new exit (range 15) 12830 | -6/Archives | Unable to access archive contents 12836 | -6/Archives | Discovered new exit (range 14) 12856 | -6/Archives | Unable to access archive contents 12940 | -6/Archives | Entered Hub_04(d) 12940 | -6/Hub_04(d) | Accompanied by 6 allies 12948 | -6/Hub_04(d) | Discovered new exit (range 18) 13127 | -6/Hub_04(d) | Discovered new exit (range 24) 13160 | -6/Hub_04(d) | Discovered new exit (range 24) 13203 | -6/Hub_04(d) | Network Hub disabled 13237 | -6/Hub_04(d) | Network Hub disabled 13265 | -6/Hub_04(d) | Spotted Lightning 13265 | -6/Hub_04(d) | Spotted Lightning 13268 | -6/Hub_04(d) | Entered Factory 13268 | -5/Factory | Accompanied by 4 allies 13268 | -5/Factory | Evolved 2 slots: Utility x2 13750 | -5/Factory | Build established: Scavenger-Skirmisher 13792 | -5/Factory | Identified exit to Upper Caves 14007 | -5/Factory | Found Prototype Device 14007 | -5/Factory | Identified Exp. Thermal Shield 14305 | -5/Factory | Entered Upper Caves 14389 | -5/Upper Caves | Attacked by a faux Warlord 14701 | -5/Upper Caves | Learned location of 1 exit from Factory 14769 | -5/Upper Caves | Learned Factory garrison access intel 14793 | -5/Upper Caves | Discovered new exit (range 23) 14919 | -5/Upper Caves | Entered another Upper Caves area 14919 | -5/Upper Caves | Accompanied by 2 allies 14920 | -5/Upper Caves | Build established: Hauler-Skirmisher 14922 | -5/Upper Caves | Discovered new exit (range 19) 15097 | -5/Upper Caves | Spotted B-75 Beast 15103 | -5/Upper Caves | Destroyed B-75 Beast 15145 | -5/Upper Caves | Attracted the attention of an 0b10 checkpoint 15333 | -5/Upper Caves | Discovered new exit (range 23) 15379 | -5/Upper Caves | Learned 12 Factory zone layouts 15393 | -5/Upper Caves | Identified exit to Warlord 15711 | -5/Upper Caves | Entered Factory 15711 | -4/Factory | Accompanied by 1 ally 15711 | -4/Factory | Evolved 2 slots: Utility x1, Weapon x1 15712 | -4/Factory | Identified exit to Armory 15713 | -4/Factory | Identified exit to Research 15715 | -4/Factory | Loaded intel: 4 garrison access locations 15781 | -4/Factory | Fabricated Hcp. Storage Unit (x1) 15809 | -4/Factory | Fabricated Hcp. Storage Unit (x1) 15982 | -4/Factory | Fabricated Adv. Shield Generator? 15994 | -4/Factory | Identified exit to Upper Caves 16106 | -4/Factory | Local fabrication network quarantined 16305 | -4/Factory | Allied Derelicts emerged from ambush trap array 16711 | -4/Factory | First assault squad dispatched 16737 | -4/Factory | Incoming assault squad redirected 17376 | -4/Factory | Repaired Centrium Medium Armor Plating 17416 | -4/Factory | Repaired Broken Imp. Weapon Cycler 17524 | -4/Factory | Entered Upper Caves 17905 | -4/Upper Caves | Discovered new exit (range 20) 17943 | -4/Upper Caves | Entered another Upper Caves area 18009 | -4/Upper Caves | Learned 4 Research zone layouts 18220 | -4/Upper Caves | Discovered new exit (range 23) 18257 | -4/Upper Caves | Entered Zhirov 18257 | -4/Zhirov | Discovered new exit (range 3) 18287 | -4/Zhirov | Met Zhirov 18323 | -4/Zhirov | Found Alien Artifact 18323 | -4/Zhirov | Identified Integrated Reactor 18323 | -4/Zhirov | Installed Integrated Reactor, increased core energy generation (+10) 18418 | -4/Zhirov | Learned location of Quarantine (-3) 18418 | -4/Zhirov | Learned location of Testing (-2) 18418 | -4/Zhirov | Learned location of Command (-1) 18426 | -4/Zhirov | Zhirov requested help retrieving the SGEMP Prototype 18470 | -4/Zhirov | Entered Proximity Caves 18515 | -3/Proximity Caves | Attracted the attention of an 0b10 checkpoint 18833 | -3/Proximity Caves | Discovered exit to Research (range 21) 18893 | -3/Proximity Caves | Entered Research 18893 | -3/Research | Evolved 2 slots: Propulsion x1, Utility x1 19058 | -3/Research | Repaired Centrium Heavy Treads 19093 | -3/Research | Revision forces began assault on 0b10 19109 | -3/Research | Met up with Revision 17++ 19122 | -3/Research | Repaired Imp. Weapon Cycler? 19229 | -3/Research | Identified exit to Research 19238 | -3/Research | Build established: Hauler-Mutant 19584 | -3/Research | Found Prototype Launcher 19584 | -3/Research | Identified Hellfire Missile Launcher 19593 | -3/Research | Research terminal network offline 19636 | -3/Research | Discovered new exit (range 24) 19648 | -3/Research | Found Prototype Device 19648 | -3/Research | Identified Exp. Focal Shield 19686 | -3/Research | Found Prototype Protection 19686 | -3/Research | Identified Centrium Heavy Armor Plating 19702 | -3/Research | Found Prototype Device 19702 | -3/Research | Identified System Purifier 19733 | -3/Research | Build established: Hauler-Skirmisher 19737 | -3/Research | Found Prototype Device 19737 | -3/Research | Identified Adv. Kinecellerator 20101 | -3/Research | Spotted Striker 20101 | -3/Research | Spotted Striker 20112 | -3/Research | Destroyed Striker 20145 | -3/Research | Spotted Striker 20154 | -3/Research | Destroyed Striker 20252 | -3/Research | Found Adv. Kinecellerator 20266 | -3/Research | Entered another Research area 20266 | -2/Research | Evolved 2 slots: Power x1, Utility x1 20911 | -2/Research | Spotted B-90 Cyclops 20996 | -2/Research | Destroyed B-90 Cyclops 21075 | -2/Research | Crushed by falling debris 21358 | -2/Research | Spotted B-90 Cyclops 21416 | -2/Research | Discovered new exit (range 23) 21486 | -2/Research | Destroyed 8 combat bots 21502 | -2/Research | Discovered new exit (range 20) 21513 | -2/Research | Identified exit to Testing 21513 | -2/Research | Identified exit to Access 21766 | -2/Research | First assault squad dispatched 21783 | -2/Research | Incoming assault squad redirected 21786 | -2/Research | Incoming assault squad redirected 22331 | -2/Research | Entered Access 22331 | -1/Access | Evolved 2 slots: Utility x2 22702 | -1/Access | Spotted B-99 Colossus 23015 | -1/Access | Identified exit to Surface 23099 | -1/Access | Incoming investigation squad redirected 23196 | -1/Access | Identified exit to Command 24045 | -1/Access | Entered Command 24127 | -1/Command | Phase Generator disabled 24474 | -1/Command | Spotted M Guard 24474 | -1/Command | Spotted M Guard 24474 | -1/Command | Spotted Combat Programmer 24524 | -1/Command | Spotted Combat Programmer 24576 | -1/Command | System corruption reached 10% 24658 | -1/Command | Destroyed M Guard 24665 | -1/Command | Destroyed Combat Programmer 24675 | -1/Command | Destroyed Combat Programmer 24766 | -1/Command | Destroyed M Guard 24766 | -1/Command | All MAIN.C guards destroyed 24799 | -1/Command | Found Prototype Protection 24799 | -1/Command | Identified Hvy. Regenerative Plating 24803 | -1/Command | Found Prototype Reactor 24803 | -1/Command | Identified Zero-point Reactor 24807 | -1/Command | Found Prototype Device 24807 | -1/Command | Identified Thermal Barrier 24819 | -1/Command | Found Prototype Processor 24819 | -1/Command | Identified Exp. Targeting Computer 24825 | -1/Command | Found Zero-point Reactor 24828 | -1/Command | Found Zero-point Reactor 24832 | -1/Command | Found Thermal Barrier 24977 | -1/Command | Met MAIN.C 25027 | -1/Command | 0b10 Conduit disabled 25125 | -1/Command | MAIN.C activated Command garrisons 25205 | -1/Command | System corruption reached 30% 25210 | -1/Command | Destroyed MAIN.C 25220 | -1/Command | P-80 Master assimilated allied B-74 Champion 25234 | -1/Command | P-80 Master assimilated allied G-73 Enforcer 25261 | -1/Command | Found Prototype Protection 25261 | -1/Command | Identified Exp. Powered Armor 25269 | -1/Command | Lost 11 parts (2p1n3u5w) 25278 | -1/Command | Found Exp. Powered Armor 25290 | -1/Command | Destroyed 10 combat bots 25377 | -1/Command | Build established: Scavenger-Skirmisher 25427 | -1/Command | Discovered exit to Surface (range 23) 25497 | *** | Establishing 0b11! Last Messages --------------- 25337_ Acquired 63 matter. 25337_ Acquired 70 matter. 25337_ Acquired 100 matter. 25337_ Acquired 60 matter. 25341_ System corrupted: Matter fused (-6). 25352_ Dropped Exp. Powered Armor. 25356_ Acquired Adv. Target Analyzer. 25359_ System Purifier purges 1% of system corruption (33%). 25365_ System corrupted: Heat flow error (+171). 25378_ System Purifier purges 1% of system corruption (32%). 25399_ Q&